Cogmind - Beta 13 @@@ ROGUE MODE // 2024.04.01 @ 19:07:28 Player: GreyJackal Result: Destroyed by G-34 Mercenary with Small Laser Performance ------------- Evolutions (1) 500 Regions Visited (4) 800 Robots Destroyed (57) 285 Value Destroyed (1137) 1137 Prototype IDs (4) 80 Alien Tech Used (0) 0 Bonus (-327) -327 TOTAL SCORE: 2475 Bonus ------- High Alert Combat Kills 70 Friendly Fire -397 Cogmind --------- Core Integrity 0/400 Matter 290/300 Energy 35/160 System Corruption 3% Temperature Cool (6) Movement Core (100) Ox1 Location -9/Storage Parts ------- > --- POWER (1) -------- Light Nuclear Core > --- PROPULSION (2) --- (None) > --- UTILITY (4) ------ Visual Processing Unit > --- WEAPON (2) ------- Light Assault Rifle > --- INVENTORY (5) ---- (None) Peak State ------------ > --- POWER ------------ Ion Engine > --- PROPULSION ------- Light Treads Armored Treads > --- UTILITY ---------- Improved Signal Interpreter Particle Charger > --- WEAPON ----------- EM Pulse Cannon Heavy Particle Cannon > --- INVENTORY -------- Light Ion Engine Light Treads Improved Signal Interpreter Improved Trap Extractor Shock Rifle [Rating: 18] Favorites ----------- Power Ion Engine Engine Ion Engine Power Core Light Nuclear Core Propulsion Light Treads Treads Light Treads Leg Carbon-fiber Leg Wheel Wheel Utility Particle Charger Device Particle Charger Processor Improved Signal Interpreter Protection Light Armor Plating Weapon Light Assault Rifle Energy Gun Shock Rifle Energy Cannon Heavy Particle Cannon Ballistic Gun Light Assault Rifle Launcher Grenade Launcher Build | -11 -10 -10 -9 -9 ------- Run | Yrd Mat Min Mat Sto Slots Evolved 2 | . . . 2 . Power . | . . . . . Propulsion . | . . . . . Utility 2 | . . . 2 . Weapon . | . . . . . Parts Attached 45 | 5 1 14 8 17 Power 6 | 1 . 2 2 1 Engine 5 | 1 . 2 2 . Core 1 | . . . . 1 Reactor . | . . . . . Propulsion 10 | 2 . 3 3 2 Treads 6 | 2 . 2 . 2 Leg 1 | . . 1 . . Wheel 3 | . . . 3 . Hover . | . . . . . Flight . | . . . . . Utility 13 | . 1 5 1 6 Device 6 | . . 3 . 3 Storage . | . . . . . Processor 4 | . 1 2 1 . Hackware . | . . . . . Protection 3 | . . . . 3 Artifact . | . . . . . Weapon 16 | 2 . 4 2 8 Energy Gun 4 | . . 1 . 3 Energy Cannon 7 | . . 2 1 4 Ballistic Gun 4 | 2 . 1 . 1 Ballistic Cannon . | . . . . . Launcher 1 | . . . 1 . Special Weapon . | . . . . . Impact Weapon . | . . . . . Slashing Weapon . | . . . . . Piercing Weapon . | . . . . . Special Melee Weapon . | . . . . . Unidentified Prototypes 2 | . . . 1 1 Corrupted Parts 10 | . . 10 . . System Corruption 50 | . . 50 . . Parts Lost 16 | . . . 4 12 Power 1 | . . . . 1 Propulsion 3 | . . . 1 2 Utility 7 | . . . 2 5 Weapon 5 | . . . 1 4 Highest Loss Streak 8 | . . . 2 8 To Critical Strikes . | . . . . . Average Slot Usage (%) 81 | . 80 96 66 77 Engine 11 | . 14 14 11 7 Treads 21 | . 28 28 15 14 Wheel 1 | . . . 2 4 Device 8 | . . 10 8 11 Processor 10 | . 9 14 6 11 Protection 1 | . . . . 6 Energy Gun 4 | . . 9 3 2 Energy Cannon 11 | . . 11 14 17 Ballistic Gun 7 | . 28 7 . . Naked Turns . | . . . . . Heaviest Build 23 | 8 8 20 23 20 Greatest Support 40 | 40 40 40 40 40 Greatest Overweight (x) 1 | . . . 1 . Average Overweight (x) . | . . . . . Largest Inventory Capacity 5 | 5 5 5 5 5 Average Capacity 5 | 5 5 5 5 5 Most Carried 5 | 5 2 5 5 4 Average Carried 1 | 1 1 2 3 1 Final Capacity 5 | 5 5 5 5 5 Final Carried 5 | 1 1 5 1 . Class Distribution -------------------- 93% | Mutant 6% | Scavenger-Mutant Dominant Class ---------------- Mutant | -10/Materials Mutant | -10/Mines Mutant | -9/Materials Scavenger-Mutant | -9/Storage Resources | -11 -10 -10 -9 -9 ----------- Run | Yrd Mat Min Mat Sto Matter Collected 927 | 229 32 248 260 158 Remotely . | . . . . . Salvage Created 1559 | . 32 163 558 806 Parts 97 | . 1 13 44 39 Haulers Intercepted 2 | . . . 1 1 Recyclers Shooed 2 | . . . 2 . Parts Field Recycled . | . . . . . Retrieved Matter . | . . . . . Parts Self-Destructed . | . . . . . Prevented . | . . . . . Kills | -11 -10 -10 -9 -9 ------- Run | Yrd Mat Min Mat Sto Combat Hostiles Destroyed 33 | . 1 5 15 12 Guns 7 | . 1 5 . 1 Cannons 15 | . . . 4 11 AOE 11 | . . . 11 . Classes Destroyed 12 | . 1 3 6 2 Worker 7 | . . 2 3 2 Builder 3 | . . . 3 . Tunneler 3 | . . 1 2 . Hauler 2 | . . . 1 1 Recycler 5 | . . . 3 2 Mechanic 1 | . . . . 1 Watcher 2 | . . . 1 1 Swarmer 16 | . . 3 10 3 Grunt 9 | . 1 2 3 3 Brawler 1 | . . . . 1 Duelist 1 | . . . 1 . Sentry 6 | . . . 1 5 Thug 1 | . . . 1 . Best Kill Streak 12 | . 1 3 12 5 Combat Bots Only 7 | . 1 3 7 4 Max Kills in Single Turn 4 | . 1 1 4 1 Gunslinging . | . . . . . Exploded 3 | . . . 3 . Melee . | . . . . . Uniques/NPCs Destroyed . | . . . . . Combat | -11 -10 -10 -9 -9 -------- Run | Yrd Mat Min Mat Sto Hostile Shots Fired 224 | . 9 33 80 102 Missed 50 | . 6 3 22 19 Damage Taken 2310 | . 73 369 739 1129 Core 467 | . . 67 134 266 Absorbed by Shields . | . . . . . Core Remaining (%) 86 | 100 . 73 . . Volleys Fired 136 | . 1 35 56 44 Largest 2 | . 2 2 2 2 Hottest 143 | . 40 50 138 143 Shots Fired 211 | . 2 55 76 78 Gun 79 | . 2 55 6 16 Cannon 111 | . . . 49 62 Launcher 21 | . . . 21 . Special . | . . . . . Kinetic 43 | . 2 40 . 1 Thermal 105 | . . . 38 67 Explosive 21 | . . . 21 . Electromagnetic 42 | . . 15 17 10 Robot Hit Streak 14 | . 2 8 7 14 Robot Miss Streak 5 | . . 3 4 5 Penetration Max . | . . . . . Secondary Targets 1 | . . 1 . . Max Gunslinging Chain 1 | . . 1 . . Shots Hit Robots 104 | . 2 30 33 39 Core Hits 72 | . 2 11 42 17 Critical Kills . | . . . . . Critical Parts Destroyed . | . . . . . Critical Strikes . | . . . . . Melee Attacks . | . . . . . Impact . | . . . . . Slashing . | . . . . . Piercing . | . . . . . Sneak Attacks . | . . . . . Combat Hostiles . | . . . . . Follow-up Attacks . | . . . . . Damage Inflicted 3266 | . 22 396 1894 954 Guns 696 | . 22 394 41 239 Cannons 1398 | . . . 688 710 Explosions 1165 | . . . 1165 . Melee . | . . . . . Ramming 7 | . . 2 . 5 Kinetic 291 | . 22 269 . . Thermal 1478 | . . . 640 838 Explosive 1051 | . . . 1051 . Electromagnetic 439 | . . 125 203 111 Impact . | . . . . . Slashing . | . . . . . Piercing . | . . . . . Highest Corruption 52 | . 1 52 1 3 Average Corruption 15 | . 1 36 1 1 Corruption Purged . | . . . . . Corruption Blocked . | . . . . . Effects 34 | . 2 25 1 6 Message Errors 8 | . . 7 . 1 Matter Fused 6 | . . 4 . 2 Heat Flow Errors 6 | . . 5 . 1 Energy Discharges 5 | . 2 2 . 1 Parts Fused 1 | . . . 1 . Data Loss (minor) 4 | . . 3 . 1 Data Loss (major) 1 | . . 1 . . Misfires 1 | . . 1 . . Alerts 1 | . . 1 . . Weapon Failures 1 | . . 1 . . Overload Shots . | . . . . . Overflow Damage 65 | . . . 42 23 Projectiles 40 | . . . 17 23 Explosions 25 | . . . 25 . Melee . | . . . . . Knockbacks . | . . . . . Impact . | . . . . . Kinetic . | . . . . . Secondary . | . . . . . Self-Inflicted Damage 101 | . . . 55 46 Shots 5 | . . . 4 1 Rammed 2 | . . 1 . 1 Targets Rammed 4 | . . 2 . 2 Kicked . | . . . . . Crushed 2 | . . 1 . 1 Highest Temperature 405 | . . 268 390 405 Average Temperature 126 | . . 70 150 138 Received Heat Transfer 612 | . 21 141 51 399 Effects 5 | . . . 3 2 Shutdowns 1 | . . . 1 . Energy Bleed 3 | . . . 1 2 Short Circuit 1 | . . . 1 . Siege Activations . | . . . . . Robots Corrupted . | . . . . . Combat Hostiles . | . . . . . Parts Fried 3 | . . . 2 1 Impact Corruptions . | . . . . . Robots Melted . | . . . . . Combat Hostiles . | . . . . . Parts Melted 2 | . . . . 2 Heat Transferred 2296 | . . . 853 1443 Parts Sabotaged . | . . . . . Parts Stolen . | . . . . . Parts Stripped . | . . . . . Power Chain Reactions 1 | . . . 1 . Alert | -11 -10 -10 -9 -9 ------- Run | Yrd Mat Min Mat Sto Peak Influence 654 | . 45 152 594 654 Initial 166 | . . 17 5 166 Average 76 | . 29 102 266 381 Maximum Alert Level 2 | . . . 2 2 Low Security (%) 86 | 100 100 100 40 13 Level 1 7 | . . . 22 52 Level 2 6 | . . . 36 33 Level 3 . | . . . . . Level 4 . | . . . . . Level 5 . | . . . . . High Security . | . . . . . Max Security . | . . . . . Squads Dispatched 4 | . 2 . 1 1 Investigation . | . . . . . Extermination . | . . . . . Reinforcement 3 | . 2 . 1 . Assault 1 | . . . . 1 Garrison . | . . . . . Intercept . | . . . . . Searches Triggered . | . . . . . Construction Impeded 1 | . . . 1 . Haulers Reinforced . | . . . . . Active Scanning Responses . | . . . . . Cargo Convoy Interrupts . | . . . . . Stealth | -11 -10 -10 -9 -9 --------- Run | Yrd Mat Min Mat Sto Distress Signals 1 | . . . 1 . Communications Jammed . | . . . . . Distress Signals . | . . . . . Times Spotted 45 | . 7 5 18 15 Peak Tracking Total 6 | . 4 3 6 4 Tactical Retreats . | . . . . . Traps | -11 -10 -10 -9 -9 ------- Run | Yrd Mat Min Mat Sto Traps Triggered 5 | . 2 1 . 2 Indirectly . | . . . . . Trap Hack Attempts . | . . . . . Triggered . | . . . . . Disarmed . | . . . . . Reprogrammed . | . . . . . Reused . | . . . . . Traps Extracted . | . . . . . Installed . | . . . . . Triggered . | . . . . . Machines | -11 -10 -10 -9 -9 ---------- Run | Yrd Mat Min Mat Sto Machines Disabled 8 | . . . 5 3 Max in Single Turn 1 | . . . 1 1 Garrison Access 1 | . . . . 1 Machines Repaired . | . . . . . Machines Dismantled . | . . . . . Machines Sabotaged . | . . . . . Overloaded Fab Kills . | . . . . . Hacking | -11 -10 -10 -9 -9 --------- Run | Yrd Mat Min Mat Sto Machines Accessed 4 | . . 1 1 2 Terminals 2 | . . . 1 1 Fabricators . | . . . . . Repair Stations . | . . . . . Recycling Units 1 | . . . . 1 Scanalyzers . | . . . . . Garrison Access . | . . . . . Total Hacks 5 | . . 1 1 3 Successful 4 | . . 1 1 2 Failed 1 | . . . . 1 Catastrophic 1 | . . . . 1 Database Lockouts . | . . . . . Manual 2 | . . . . 2 Terminals 3 | . . . 1 2 Fabricators . | . . . . . Repair Stations . | . . . . . Recycling Units 1 | . . . . 1 Scanalyzers . | . . . . . Garrison Access . | . . . . . Terminal Hacks 3 | . . 1 1 1 Record 1 | . . . . 1 Prototype ID Bank 1 | . . . 1 . Open Door 1 | . . 1 . . Fabricator Hacks . | . . . . . Repair Station Hacks . | . . . . . Recycling Unit Hacks 1 | . . . . 1 Report Inventory 1 | . . . . 1 Scanalyzer . | . . . . . Garrison Access Hacks . | . . . . . Unauthorized Hacks . | . . . . . Terminals . | . . . . . Fabricators . | . . . . . Repair Stations . | . . . . . Recycling Units . | . . . . . Scanalyzers . | . . . . . Garrison Access . | . . . . . Data Cores Recovered . | . . . . . Used . | . . . . . Hacking Detections 1 | . . . . 1 Full Trace Events . | . . . . . Feedback Events . | . . . . . Feedback Blocked . | . . . . . Robot Schematics Acquired . | . . . . . Robots Built . | . . . . . Authchips . | . . . . . Time . | . . . . . Total Robot Build Rating . | . . . . . Part Schematics Acquired . | . . . . . Parts Built . | . . . . . Authchips . | . . . . . Time . | . . . . . Total Part Build Rating . | . . . . . Parts Repaired . | . . . . . Time . | . . . . . Parts Recycled . | . . . . . Recycled Matter . | . . . . . Retrieved Matter . | . . . . . Retrieved Components . | . . . . . Parts Scanalyzed . | . . . . . Part Schematics Acquired . | . . . . . Parts Damaged . | . . . . . Bothacking | -11 -10 -10 -9 -9 ------------ Run | Yrd Mat Min Mat Sto Used RIF Installer . | . . . . . Robots Hacked . | . . . . . Non-combat . | . . . . . Combat . | . . . . . Robot Hacks Applied . | . . . . . Relay Couplers Released 3 | . . . . 3 Machine Destruction 3 | . . . . 3 Fabnet Peak Effective % . | . . . . . Robots Rewired . | . . . . . Allies Hacked . | . . . . . Hacks Repelled . | . . . . . Allies | -11 -10 -10 -9 -9 -------- Run | Yrd Mat Min Mat Sto Total Allies . | . . . . . Largest Group . | . . . . . Highest-Rated Group . | . . . . . Highest-Rated Ally . | . . . . . Total Orders . | . . . . . Ally Attacks . | . . . . . Total Damage . | . . . . . Kills . | . . . . . Allies Corrupted . | . . . . . Allies Melted . | . . . . . Intel | -11 -10 -10 -9 -9 ------- Run | Yrd Mat Min Mat Sto Robot Analysis Total . | . . . . . Derelict Logs Recovered 1 | . . 1 . . Drone Launches . | . . . . . Drone Recoveries . | . . . . . Exploration | -11 -10 -10 -9 -9 ------------- Run | Yrd Mat Min Mat Sto Turns Passed 4569 | 2865 279 561 418 446 Spaces Moved 1337 | 543 172 266 153 203 Core 30 | 18 . . . 12 Treads 1193 | 525 172 266 110 120 Legs . | . . . . . Wheels 114 | . . . 43 71 Hover . | . . . . . Flight . | . . . . . Fastest Speed 50 | 50 160 160 80 50 Average Speed 153 | 156 160 164 155 125 Slowest Speed 250 | 160 160 165 250 160 Overloaded Moves . | . . . . . Propulsion Burnouts . | . . . . . Robots Hopped . | . . . . . Cave-ins Triggered 1 | . . . 1 . Exploration Rate (%) 44 | 83 31 54 18 34 Regions Visited 4 Branch Regions 2 Pre-discovered Areas 1 | . . . . 1 Known Exits Taken 2 | . . 1 1 . Unknown Exits Taken 2 | 1 1 . . . Scrap Searched 1 | . . 1 . . Spaces Dug . | . . . . . Terrain Destroyed 140 | . . . 116 24 Melee . | . . . . . Projectile 24 | . . . 15 9 AOE 116 | . . . 101 15 Terrain Rammed . | . . . . . Walls Destroyed . | . . . . . Machines Disabled . | . . . . . Actions | -11 -10 -10 -9 -9 --------- Run | Yrd Mat Min Mat Sto Total 3639 | 2559 174 335 257 314 Wait 2068 | 2006 . 2 32 28 Move 1333 | 542 171 265 152 203 Hop . | . . . . . Pick Up 37 | 6 1 12 4 14 Fast Attach . | . . . . . Attach 19 | 5 1 1 3 9 Detach . | . . . . . Swap 26 | . . 13 5 8 Drop 16 | . . 5 5 6 Fire 136 | . 1 35 56 44 Melee . | . . . . . Ram . | . . . . . Kick . | . . . . . Crush 4 | . . 2 . 2 Escape Stasis . | . . . . . Rewire . | . . . . . Trap . | . . . . . Miscellaneous . | . . . . . Route ------- -11/Scrapyard -10/Materials -10/Mines -9/Materials (discovered 3 exits: [*Mat] / [*Min] / *Sto) -9/Storage History --------- Turn | Location | Event 3 | -11/Scrapyard | Discovered new exit (range 15) 2866 | -11/Scrapyard | Entered Materials 2867 | -10/Materials | Build established: Mutant 3098 | -10/Materials | Discovered new exit (range 16) 3145 | -10/Materials | Entered Mines 3203 | -10/Mines | Met a Derelict bent on vengeance 3273 | -10/Mines | Met a Derelict who couldn't figure out how to use a Trap Extractor 3287 | -10/Mines | System corruption reached 10% 3308 | -10/Mines | System corruption reached 30% 3587 | -10/Mines | Discovered new exit (range 8) 3705 | -10/Mines | Identified exit to Materials 3706 | -10/Mines | Entered Materials 3706 | -9/Materials | Evolved 2 slots: Utility x2 3707 | -9/Materials | Identified exit to Storage 3895 | -9/Materials | Destroyed 7 combat bots 3930 | -9/Materials | Crushed by falling debris 4094 | -9/Materials | Discovered new exit (range 12) 4122 | -9/Materials | Discovered new exit (range 17) 4124 | -9/Materials | Entered Storage 4174 | -9/Storage | Learned location of Armory (-3) 4389 | -9/Storage | Core integrity fell below 50% 4518 | -9/Storage | Core integrity fell below 20% 4570 | -9/Storage | Destroyed by G-34 Mercenary with Small Laser Last Messages --------------- Lgt. Treads destroyed. K-01 Serf collects debris. G-34 Mercenary destroyed. K-01 Serf collects debris. System corrupted: Heat flow error (+271). Heat Sink destroyed. K-01 Serf collects debris. Imp. Medium Laser destroyed. Acquired 10 matter. Hvy. Particle Cannon destroyed. K-01 Serf collects debris. Overheating: Energy bleed (-2). Acquired Lgt. Assault Rifle. U-05 Engineer builds a Door. K-01 Serf collects debris. Acquired 10 matter. Connecting with Door Terminal... U-05 Engineer builds a Wall. Acquired 1 matter. Acquired Lgt. Nuclear Core. Map ----- +----------------------------------------------------+ | | | | | | | | | | | | | | | | | | | | | | | | | | | | | ???????????????????###########??????????? | | ???????????????????# ! !![ #??????????? | | ???????????????????##%[!![ #??????????? | | ????????????????????#! ![ #??????????? | | ????????????????????# *#??????????? | | ????????????????????# =%#??????????? | | ????????????????????# ""[#??????????? | | ????????????????????# !G"!#??????????? | | ????????????????????# ==""%##?????????? | | ????????????????????# !!%%%=##????????? | | ##????????????#############+##T#"???????? | | ########?????# #@!%=% "???????? | | #?????# # ! "???????? | | """ #?????# """"" # ;;###"???????? | | """ ####??# """"" #%*###??????????? | | # """ # #### """"" + #????????????? | | # + #% #????????????? | | ##### # #????????????? | | ##+### #??# !# +????????????? | | [] !=* #??########### g#????????????? | | ##### #????????????# #????????????? | | ############????????????# #????????????? | | = +????????# #????????????? | | #########???????????????# #????????????? | | #???????????????????????# #????????????? | | #???????????????????????+ +????????????? | | ###?????????????????????# #????????????? | | #?????????????????????# #????????????? | | +?????????????????????# #????????????? | | #?????????????????????? #????????????? | | +##?????????????????????? ?????????????? | | #?????????????????????? ?????????????? | | #?????????????????????? ?????????????? | | #######/##????????????????????????????? | | + #????????????????????? | | " ## #####????????????????????????????? | +----------------------------------------------------+ Best States ------------- Heat Dissipation 48 Energy Generation 14 Energy Capacity 280 Matter Stores 300 Matter Capacity 300 Sight Range 18 Terrain Scan Density 10 Armor Coverage 150 Evasion (%) 50 Targeting Accuracy 5 Recoil Reduction 2 Particle Charging 15 Trap Extractor Capacity 6 Item Schematics ----------------- None Robot Schematics ------------------ None Fabricated ------------ Nothing Alien Tech Used ----------------- None Achievements -------------- Backstab Unlikely Earthworm Z1$+NX3F=JRE3_ZNQR Challenges ------------ None Game ------ Seed ZioniteImprovedShotgun Manual? 0 Play Time 00:24:20 Cumulative 5.2 hours Start 2024.04.01 @ 18:37:43 End 2024.04.01 @ 19:07:28 Sessions 1 Manual Loads 0 Difficulty Rogue Special Mode None Game No. 9 Rogue 9 Adventurer 0 Explorer 0 Win Type - Total 0 Types 0/0/0/0/0/0/0/0/0 Lore% 13 Gallery% 12 Achievement% 11 Wizard Run 0 Options --------- Layout 1 ASCII 0 Keyboard 0 Movement Mouse Keybinds 0 Fullscreen 1 Font 32/SmallcapsGlow Map View 50x35 Zoom Use 0% Tactical HUD 0 Map Filters NONE Filters NONE Steam 1 RUN: 4e3c8b31-ccb0-4913-8d1e-85e475fae4ac